bitfinex-derivatives/quotes_BTCF0:USTF0_20250207
["timestamp","ask_amount","ask_price","bid_price","bid_amount"]
[1738898678149,0.2050926,97512.0,97511.0,0.3608]
[1738898678347,0.004,97515.0,97511.0,0.3608]
[1738898678547,0.00115382,97518.0,97511.0,0.3608]
[1738898678851,0.00115382,97518.0,97512.0,0.002]
[1738898679145,0.00015382,97518.0,97512.0,0.002]
[1738898679532,0.001,97515.0,97510.0,0.3608]
[1738898680353,0.00115382,97518.0,97510.0,0.3608]
[1738898681545,0.00615382,97518.0,97510.0,0.3608]
[1738898681746,0.2050964,97511.0,97507.0,0.0332]
[1738898681957,0.205101,97508.0,97507.0,0.0332]
[1738898683149,0.208101,97508.0,97507.0,0.0332]
[1738898683551,0.209101,97508.0,97507.0,0.0332]
[1738898683854,0.004,97508.0,97507.0,0.0332]
[1738898684638,0.004,97508.0,97507.0,0.2383031]
[1738898685549,0.004,97508.0,97507.0,0.0332]
[1738898687549,0.004,97508.0,97493.0,0.0311]
[1738898688356,0.004,97508.0,97493.0,0.04157188]
[1738898688656,0.12129035,97510.0,97493.0,0.04157188]
[1738898688959,0.2051151,97502.0,97493.0,0.04257188]
[1738898689360,0.2051304,97494.0,97493.0,0.001]
[1738898689657,0.2051304,97494.0,97492.0,0.00153851]
[1738898689858,0.0656,97493.0,97492.0,0.00153851]
[1738898690358,0.0656,97493.0,97474.0,0.0628]
[1738898690557,0.2051469,97487.0,97474.0,0.0628]
[1738898690758,0.2051469,97487.0,97474.0,0.0104125]
[1738898690949,0.2051504,97485.0,97475.0,0.20517]
[1738898691451,0.2051504,97485.0,97464.0,0.0474]
[1738898691655,0.2051504,97485.0,97467.0,0.56575672]
[1738898691853,0.2051504,97485.0,97467.0,0.2063856]
[1738898692156,0.2061504,97485.0,97467.0,0.2051856]
[1738898692352,0.2061504,97485.0,97475.0,0.003]
[1738898692859,0.2051504,97485.0,97475.0,0.003]
[1738898693058,0.2061504,97485.0,97473.0,0.37109578]
[1738898693360,0.2061504,97485.0,97473.0,0.37409578]
[1738898693655,0.2051599,97480.0,97473.0,0.3638]
[1738898695059,0.2051599,97480.0,97475.0,0.003]
[1738898695259,0.001,97480.0,97475.0,0.003]
[1738898695461,0.2051639,97479.0,97475.0,0.003]
[1738898695650,0.205165,97478.0,97475.0,0.003]
[1738898695851,0.205165,97478.0,97473.0,0.3628]
[1738898696659,0.205165,97478.0,97475.0,0.002]
[1738898697361,0.001,97480.0,97475.0,0.002]
[1738898697561,0.205167,97477.0,97475.0,0.002]
[1738898698262,0.2051711,97475.0,97473.0,0.3628]
[1738898698854,0.2051711,97475.0,97473.0,0.3608]
[1738898699753,0.2051711,97475.0,97473.0,0.3618]
[1738898701457,0.0626,97474.0,97473.0,0.001]
[1738898701658,0.0626,97474.0,97464.0,0.01031463]
[1738898701852,0.2051919,97465.0,97456.0,0.2052095]
[1738898702053,0.2051919,97465.0,97462.0,0.37114638]
[1738898703348,0.2061919,97465.0,97462.0,0.37314638]
[1738898707150,0.001,97465.0,97462.0,0.37314638]
[1738898707361,0.001,97465.0,97463.0,0.2051957]
[1738898708459,0.001,97465.0,97462.0,0.37114638]
[1738898708666,0.001,97465.0,97463.0,0.2071957]
[1738898709456,0.001,97465.0,97463.0,0.2051957]
[1738898711269,0.0001539,97473.0,97472.0,0.2051767]
[1738898711564,0.0001539,97473.0,97472.0,0.5659767]
[1738898712669,0.0011539,97473.0,97472.0,0.5659767]
[1738898713066,0.0001539,97473.0,97472.0,0.57944192]
[1738898713269,0.0011539,97473.0,97472.0,0.57944192]
[1738898714566,0.0332,97499.0,97492.0,0.2051333]
[1738898714867,0.87664302,97507.0,97489.0,0.3608]
[1738898714868,0.04010736,97506.0,97489.0,0.3608]
[1738898715466,0.0301,97506.0,97497.0,0.3608]
[1738898715766,0.0001539,97505.0,97497.0,0.3608]
[1738898715969,0.001,97501.0,97497.0,0.3608]
[1738898716671,0.001,97501.0,97500.0,0.2051165]
[1738898717661,0.005,97502.0,97500.0,0.2051165]
[1738898717870,0.005,97502.0,97501.0,0.3608]
[1738898718267,0.0001539,97505.0,97501.0,0.3608]
[1738898718468,0.0001539,97505.0,97504.0,0.2051094]
[1738898719173,0.0001539,97505.0,97504.0,0.2524694]
[1738898719475,0.0051539,97505.0,97504.0,0.2524694]
[1738898720063,0.0071539,97505.0,97504.0,0.2524694]
[1738898720974,0.0081539,97505.0,97504.0,0.2524694]
[1738898723969,0.15300308,97527.0,97504.0,0.04736]
[1738898724275,0.15300308,97527.0,97522.0,0.3608]
[1738898725061,0.2050683,97524.0,97522.0,0.3608]
[1738898726277,0.16200308,97527.0,97522.0,0.3608]
[1738898726974,0.002,97524.0,97522.0,0.3608]
[1738898727381,0.01,97524.0,97522.0,0.3618]
[1738898727677,0.008,97524.0,97522.0,0.3618]
[1738898727873,0.01,97527.0,97522.0,0.3618]
[1738898728377,0.01,97527.0,97522.0,0.3608]
[1738898728578,0.008,97524.0,97522.0,0.3618]
[1738898728777,0.008,97524.0,97523.0,0.3608]
[1738898728977,0.008,97524.0,97522.0,0.001]
[1738898729276,0.01,97524.0,97522.0,0.001]
[1738898729879,0.008,97524.0,97522.0,0.001]
[1738898730069,0.011,97524.0,97520.0,0.3608]
[1738898730270,0.003,97524.0,97522.0,0.001]
[1738898730670,0.008,97527.0,97522.0,0.001]
[1738898730873,0.01,97524.0,97522.0,0.001]
[1738898733078,0.008,97524.0,97522.0,0.001]
[1738898733784,0.01,97524.0,97522.0,0.001]
[1738898736283,0.008,97524.0,97522.0,0.001]
[1738898736584,0.008,97524.0,97522.0,0.002]
[1738898736778,0.0309,97528.0,97522.0,0.001]
[1738898736978,0.0309,97528.0,97522.0,0.003]
[1738898737182,0.2359608,97528.0,97522.0,0.003]
[1738898738178,0.2359608,97528.0,97522.0,0.002]
[1738898739079,0.0309,97528.0,97527.0,0.205061]
[1738898740679,0.00153855,97531.0,97520.0,0.3608]
[1738898740989,0.00153855,97531.0,97530.0,0.3608]
[1738898743588,0.00353855,97531.0,97530.0,0.3608]
[1738898745881,0.00353855,97531.0,97530.0,0.37128515]
[1738898747183,0.2050594,97528.0,97520.0,0.3608]
[1738898747488,0.00353855,97531.0,97520.0,0.37110089]
[1738898748790,0.2050662,97525.0,97520.0,0.37210089]
[1738898749087,0.2050662,97525.0,97520.0,0.3618]
[1738898749284,0.2050662,97525.0,97520.0,0.001]
[1738898749484,0.2050662,97525.0,97518.0,0.04732]
[1738898749678,0.2050662,97525.0,97520.0,0.003]
[1738898750488,0.2050732,97522.0,97520.0,0.003]
[1738898750692,0.0952,97521.0,97520.0,0.003]
[1738898760998,0.0327,97521.0,97520.0,0.003]
[1738898761191,0.18291029,97527.0,97520.0,0.3638]
[1738898762291,0.18291029,97527.0,97520.0,0.3618]
[1738898762491,0.18291029,97527.0,97520.0,0.3638]
[1738898763096,0.1535317,97522.0,97520.0,0.3638]
[1738898764102,0.1535317,97522.0,97520.0,0.003]
[1738898765393,0.3586043,97522.0,97520.0,0.001]
[1738898765593,0.3586043,97522.0,97520.0,0.003]
[1738898766792,0.1535317,97522.0,97520.0,0.003]
[1738898766996,0.205056,97530.0,97520.0,0.003]
[1738898767595,0.205056,97530.0,97520.0,0.3638]
[1738898767793,0.205056,97530.0,97520.0,0.48509035]
[1738898768193,0.205056,97530.0,97520.0,0.3638]
[1738898768992,0.205056,97530.0,97520.0,0.3618]
[1738898769296,0.205056,97530.0,97520.0,0.3638]
[1738898773101,0.1535317,97524.0,97520.0,0.3638]
[1738898777099,0.1535317,97524.0,97521.0,0.2050736]
[1738898777596,0.1535317,97524.0,97522.0,0.2050703]
[1738898779201,0.18291029,97527.0,97522.0,0.2070703]
[1738898780389,0.18291029,97527.0,97522.0,0.2080703]
[1738898780998,0.18291029,97527.0,97522.0,0.2070703]
[1738898781197,0.18291029,97527.0,97522.0,0.2080703]
[1738898782108,0.18291029,97527.0,97522.0,0.2060703]
[1738898782295,0.00153855,97531.0,97522.0,0.2080703]
[1738898784700,0.00153855,97531.0,97522.0,0.2060703]
[1738898784900,0.00153855,97531.0,97522.0,0.2080703]
[1738898785101,0.20659175,97531.0,97522.0,0.003]
[1738898785501,0.00153855,97531.0,97522.0,0.003]
[1738898785701,0.2050638,97526.0,97522.0,0.003]
[1738898785898,0.2050677,97524.0,97522.0,0.003]
[1738898787203,0.2050757,97520.0,97519.0,0.18407387]
[1738898789000,0.2050757,97520.0,97519.0,0.18707387]
[1738898789503,0.2050757,97520.0,97519.0,0.18807387]
[1738898790203,0.2050757,97520.0,97519.0,0.18707387]
[1738898790401,0.2549455,97520.0,97519.0,0.003]
[1738898790602,0.205082,97518.0,97502.0,0.2051124]
[1738898790911,0.0933,97517.0,97502.0,0.2051124]
[1738898792496,0.0933,97517.0,97501.0,0.01041105]
[1738898792497,0.2993837,97517.0,97501.0,0.01041105]
[1738898793913,0.30950138,97517.0,97501.0,0.01041105]
[1738898794402,0.15361109,97516.0,97501.0,0.01041105]
[1738898795604,0.15461109,97516.0,97501.0,0.01041105]
[1738898797698,0.0508682,97516.0,97501.0,0.01041105]
[1738898798909,0.0508682,97516.0,97515.0,1.662e-05]
[1738898802007,0.2050869,97515.0,97503.0,0.36067821]
[1738898802213,0.2050869,97515.0,97506.0,0.079557]
[1738898802512,0.0508682,97516.0,97512.0,0.3608]
[1738898803105,0.0508682,97516.0,97514.0,0.2050873]
[1738898803498,0.001,97516.0,97514.0,0.2050873]
[1738898804205,0.15349422,97517.0,97514.0,0.2050873]
[1738898804899,0.15349422,97517.0,97516.0,0.3608]
[1738898806816,0.15503277,97531.0,97516.0,0.3608]
[1738898807214,0.15503277,97531.0,97520.0,0.12117969]
[1738898807408,0.15503277,97531.0,97521.0,0.0613]
[1738898808912,0.15503277,97531.0,97521.0,0.0643]
[1738898810212,0.15349422,97530.0,97521.0,0.0643]
[1738898810715,0.15349422,97530.0,97521.0,0.0653]
[1738898810907,0.15349422,97530.0,97521.0,0.4261]
[1738898811411,0.15349422,97530.0,97521.0,0.4231]
[1738898811606,0.15349422,97530.0,97521.0,0.4261]
[1738898812709,0.2050715,97522.0,97521.0,0.004]
[1738898812913,0.8750715,97522.0,97521.0,0.004]
[1738898813505,0.8750715,97522.0,97521.0,0.003]
[1738898813709,0.2050856,97516.0,97503.0,0.0624]
[1738898814603,0.2050876,97515.0,97503.0,0.0624]
[1738898814811,0.2050876,97515.0,97504.0,0.00615382]
[1738898815516,0.2050876,97515.0,97504.0,0.01644122]
[1738898815703,0.2050876,97515.0,97504.0,0.00615382]
[1738898815909,0.2050876,97515.0,97504.0,0.00015382]
[1738898816211,0.2060876,97515.0,97504.0,0.00615382]
[1738898816414,0.2060876,97515.0,97504.0,0.00915382]
[1738898817615,0.2050899,97514.0,97504.0,0.00915382]
[1738898818613,0.205093,97512.0,97504.0,0.00915382]
[1738898818918,0.001,97515.0,97504.0,0.00915382]
[1738898818919,0.2050997,97509.0,97504.0,0.00915382]
[1738898819110,0.2050997,97509.0,97504.0,0.00315382]
[1738898819512,0.2050997,97509.0,97504.0,0.00215382]
[1738898820417,0.001,97514.0,97504.0,0.00215382]
[1738898820919,0.001,97514.0,97504.0,0.00015382]
[1738898821120,0.57682154,97518.0,97504.0,0.00215382]
[1738898821321,0.001,97512.0,97504.0,0.00515382]
[1738898821716,0.2050877,97515.0,97504.0,0.00215382]
[1738898821918,0.2050877,97515.0,97504.0,0.00515382]
[1738898822120,0.3608,97518.0,97504.0,0.00515382]
[1738898823918,0.3608,97518.0,97505.0,0.2051065]
[1738898824223,0.0308,97521.0,97514.0,0.3608]
[1738898824418,0.04105134,97521.0,97514.0,0.3608]
[1738898825523,0.04205134,97521.0,97514.0,0.3638]
[1738898826119,0.04105134,97521.0,97514.0,0.3638]
[1738898826820,0.04105134,97521.0,97514.0,0.3658]
[1738898827616,0.04105134,97521.0,97514.0,0.3608]
[1738898827817,0.04105134,97521.0,97514.0,0.3658]
[1738898828211,0.04105134,97521.0,97514.0,0.3628]
[1738898828421,0.04105134,97521.0,97514.0,0.3658]
[1738898828822,0.04105134,97521.0,97514.0,0.3628]
[1738898829021,0.04105134,97521.0,97514.0,0.3658]
[1738898829321,0.0306,97526.0,97514.0,0.3658]
[1738898829322,0.0306,97526.0,97515.0,0.2050863]
[1738898829515,0.0306,97526.0,97522.0,0.3608]
[1738898830723,0.2050561,97530.0,97522.0,0.3608]
[1738898830923,0.61385533,97537.0,97522.0,0.3608]
[1738898831123,0.40881423,97537.0,97522.0,0.3608]
[1738898831327,0.2050437,97536.0,97522.0,0.3608]
[1738898831824,0.15349422,97523.0,97522.0,0.3628]
[1738898833324,0.15349422,97523.0,97522.0,0.3638]
[1738898834117,0.15349422,97523.0,97522.0,0.3618]
[1738898834425,0.15349422,97523.0,97522.0,0.3638]
[1738898835819,0.15349422,97523.0,97522.0,0.3618]
[1738898836019,0.15349422,97523.0,97522.0,0.3638]
[1738898837721,0.15349422,97523.0,97522.0,0.003]
[1738898837929,0.18529422,97523.0,97522.0,0.003]
[1738898838427,0.21849422,97523.0,97522.0,0.003]
[1738898839317,0.21849422,97523.0,97522.0,0.002]
[1738898840118,0.21849422,97523.0,97522.0,0.001]
[1738898841221,0.42356362,97523.0,97522.0,0.001]
[1738898841820,0.2289841,97523.0,97517.0,0.3608]
[1738898842820,0.2289841,97523.0,97517.0,0.3628]
[1738898843026,0.2289841,97523.0,97517.0,0.3638]
[1738898843227,0.2050791,97519.0,97517.0,0.3638]
[1738898843428,0.2050791,97519.0,97517.0,0.003]
[1738898844628,0.2050791,97519.0,97517.0,0.002]
[1738898844928,0.2050791,97519.0,97517.0,0.003]
[1738898845528,0.2050791,97519.0,97517.0,0.001]
[1738898845731,0.2050791,97519.0,97517.0,0.003]
[1738898845927,0.2050791,97519.0,97517.0,0.002]
[1738898846234,0.2050791,97519.0,97517.0,0.003]
[1738898847628,0.2050791,97519.0,97517.0,0.002]
[1738898847926,0.2050791,97519.0,97517.0,0.003]
[1738898848420,0.2050791,97519.0,97517.0,0.001]
[1738898848623,0.2050791,97519.0,97517.0,0.002]
[1738898848828,0.08156596,97518.0,97517.0,0.002]
[1738898849420,0.08156596,97518.0,97517.0,0.001]
[1738898849628,0.28664596,97518.0,97517.0,0.003]
[1738898851032,0.08156596,97518.0,97508.0,0.3608]
[1738898851238,0.2050989,97509.0,97508.0,0.3608]
[1738898851624,0.2050905,97513.0,97506.0,0.3608]
[1738898851821,0.2051031,97507.0,97506.0,0.3608]
[1738898853528,0.3608,97511.0,97504.0,0.00015382]
[1738898853833,0.2051073,97505.0,97504.0,0.00015382]
[1738898854635,0.2051073,97505.0,97504.0,0.00315382]
[1738898855230,0.2061073,97505.0,97504.0,0.00515382]
[1738898858436,0.001,97505.0,97504.0,0.36595382]
[1738898858635,0.00015382,97514.0,97508.0,0.2050998]
[1738898858837,0.00015382,97514.0,97513.0,0.3608]
[1738898861344,0.00015382,97514.0,97513.0,0.3618]
[1738898861946,0.00015382,97514.0,97513.0,0.3628]
[1738898863945,0.00015382,97514.0,97513.0,0.37329385]
[1738898865340,0.00015382,97514.0,97513.0,0.57838435]
[1738898865542,0.15366193,97519.0,97516.0,0.2050837]
[1738898865743,0.15366193,97519.0,97517.0,0.2360812]
[1738898866048,0.15366193,97519.0,97518.0,0.0624]
[1738898868057,0.2050674,97524.0,97518.0,0.0624]
[1738898868259,0.2050674,97524.0,97523.0,0.3608]
[1738898870457,0.2060674,97524.0,97523.0,0.3608]
[1738898871152,0.2080674,97524.0,97523.0,0.3608]
[1738898871358,0.004,97524.0,97523.0,0.3608]
[1738898875449,0.004,97524.0,97518.0,0.0624]
[1738898875650,0.004,97524.0,97523.0,0.3608]
[1738898881257,0.2050804,97518.0,97514.0,0.18407387]
[1738898881563,0.2050804,97518.0,97513.0,0.19456772]
[1738898881753,0.2050804,97518.0,97513.0,0.18407387]
[1738898881954,0.0629,97523.0,97513.0,0.18407387]
[1738898882255,0.2679703,97523.0,97513.0,0.18407387]
[1738898882554,0.0629,97523.0,97513.0,0.18407387]
[1738898882760,0.2050722,97522.0,97513.0,0.18407387]
[1738898883661,0.2050722,97522.0,97513.0,0.18507387]
[1738898884053,0.2050722,97522.0,97513.0,0.18607387]
[1738898884255,0.2050722,97522.0,97514.0,0.3608]
[1738898884558,0.2140722,97522.0,97514.0,0.3608]
[1738898885062,0.2140722,97522.0,97513.0,0.002]
[1738898885252,0.2140722,97522.0,97514.0,0.3608]
[1738898886254,0.0629,97523.0,97514.0,0.3608]
[1738898886463,0.2050792,97519.0,97514.0,0.3628]
[1738898887556,0.2050792,97519.0,97514.0,0.3618]
[1738898888662,0.2050792,97519.0,97514.0,0.001]
[1738898888859,0.2050792,97519.0,97514.0,0.3618]
[1738898889364,0.2050792,97519.0,97514.0,0.001]
[1738898889562,0.009,97519.0,97514.0,0.001]
[1738898889763,0.2050846,97516.0,97514.0,0.001]
[1738898890863,0.18606193,97518.0,97503.0,0.408]
[1738898891065,0.2050954,97511.0,97503.0,0.4092]
[1738898891767,0.2050954,97511.0,97503.0,0.6143108]
[1738898892860,0.2060954,97511.0,97504.0,0.00115382]
[1738898894075,0.2060954,97511.0,97508.0,0.3608]
[1738898895874,0.2050954,97511.0,97508.0,0.3618]
[1738898897562,0.009,97516.0,97508.0,0.3618]
[1738898898571,0.009,97516.0,97508.0,0.3608]
[1738898898772,0.0324,97518.0,97508.0,0.3618]
[1738898898966,0.009,97511.0,97508.0,0.3618]
[1738898899166,0.009,97511.0,97508.0,0.3608]
[1738898899469,0.009,97511.0,97508.0,0.3618]
[1738898899871,0.0324,97518.0,97508.0,0.3618]
[1738898900077,0.0324,97518.0,97508.0,0.3628]
[1738898900078,0.2140846,97516.0,97508.0,0.3628]
[1738898901865,0.2140846,97516.0,97508.0,0.3618]
[1738898902064,0.009,97516.0,97508.0,0.2071006]
[1738898905874,0.009,97511.0,97508.0,0.2071006]
[1738898906568,0.35873863,97520.0,97508.0,0.2071006]
[1738898906877,0.009,97516.0,97508.0,0.2071006]
[1738898907281,0.009,97516.0,97510.0,0.3608]
[1738898908783,0.009,97516.0,97510.0,0.3618]
[1738898911785,0.009,97511.0,97510.0,0.3608]
[1738898911979,0.009,97511.0,97510.0,0.3618]
[1738898912377,0.2050831,97517.0,97510.0,0.3618]
[1738898912578,0.009,97516.0,97510.0,0.3628]
[1738898912979,0.009,97516.0,97510.0,0.3618]
[1738898913179,0.009,97511.0,97510.0,0.3628]
[1738898914579,0.009,97511.0,97510.0,0.3618]
[1738898914780,0.009,97516.0,97510.0,0.3628]
[1738898915475,0.2050928,97512.0,97510.0,0.002]
[1738898915687,0.009,97511.0,97510.0,0.002]
[1738898916275,0.2050968,97510.0,97508.0,0.18407387]
[1738898918389,0.2050968,97510.0,97501.0,0.05727924]
[1738898918782,0.2140968,97510.0,97508.0,0.001]
[1738898919285,0.2140968,97510.0,97508.0,0.002]
[1738898919882,0.2140968,97510.0,97508.0,0.001]
[1738898920089,0.2140968,97510.0,97508.0,0.002]
[1738898920685,0.2140968,97510.0,97508.0,0.001]
[1738898921492,0.2140968,97510.0,97508.0,0.002]
[1738898922882,0.04986774,97509.0,97508.0,0.002]
[1738898923983,0.04986774,97509.0,97508.0,0.001]
[1738898924196,0.05886774,97509.0,97508.0,0.002]
[1738898925690,0.05886774,97509.0,97492.0,0.24416919]
[1738898925892,0.3608,97505.0,97492.0,0.24536919]
[1738898926091,0.3608,97505.0,97500.0,0.24416919]
[1738898926283,0.2051157,97501.0,97500.0,0.24416919]
[1738898927993,0.2141157,97501.0,97500.0,0.24516919]
[1738898928402,0.2151157,97501.0,97500.0,0.24516919]
[1738898930099,0.2151157,97501.0,97500.0,0.001]
[1738898930699,0.001,97501.0,97497.0,0.00153843]
[1738898930901,0.205122,97498.0,97497.0,0.00153843]
[1738898932293,0.206122,97498.0,97497.0,0.00153843]
[1738898932493,0.215122,97498.0,97497.0,0.00153843]
[1738898933306,0.26499854,97498.0,97497.0,0.00153843]
[1738898936897,0.26499854,97498.0,97491.0,0.00015382]
[1738898936898,0.05987654,97498.0,97491.0,0.00015382]
[1738898937100,0.3937,97497.0,97474.0,0.205172]
[1738898937305,0.205164,97479.0,97474.0,0.205172]
[1738898937807,0.3608,97487.0,97474.0,0.205172]
[1738898938005,0.2051633,97479.0,97474.0,0.205172]
[1738898938208,0.2051633,97479.0,97474.0,0.21527488]
[1738898938904,0.2131633,97479.0,97474.0,0.21527488]
[1738898939109,0.2141633,97479.0,97474.0,0.21527488]
[1738898939407,0.2141633,97479.0,97474.0,0.01010288]
[1738898939609,0.2141633,97479.0,97473.0,0.0973]
[1738898940695,0.01,97479.0,97473.0,0.0973]
[1738898941004,0.01,97479.0,97477.0,0.2051653]
[1738898944121,0.01,97479.0,97473.0,0.10762181]
[1738898944820,0.01,97479.0,97474.0,0.1845207]
[1738898945217,0.001,97479.0,97474.0,0.1845207]
[1738898945412,0.01,97479.0,97474.0,0.1845207]
[1738898945919,0.009,97479.0,97474.0,0.1845207]
[1738898946224,0.01,97479.0,97474.0,0.1845207]
[1738898947428,0.01,97479.0,97473.0,0.29214251]
[1738898948531,0.2051589,97481.0,97473.0,0.29214251]
[1738898948733,0.01,97479.0,97473.0,0.29214251]
[1738898949729,0.009,97479.0,97473.0,0.29214251]
[1738898950323,0.01,97479.0,97473.0,0.29214251]
[1738898950835,0.001,97479.0,97473.0,0.29214251]
[1738898951420,0.001,97479.0,97473.0,0.10762181]
[1738898951621,0.01,97479.0,97473.0,0.10762181]
[1738898954733,0.009,97479.0,97473.0,0.10762181]
[1738898954930,0.01,97479.0,97473.0,0.10762181]
[1738898955132,0.2151637,97479.0,97473.0,0.10762181]
[1738898955323,0.2141637,97479.0,97473.0,0.10762181]
[1738898955527,0.2151637,97479.0,97473.0,0.10762181]
[1738898957239,0.01,97479.0,97473.0,0.31279581]
[1738898960342,0.01,97479.0,97477.0,0.5659661]
[1738898961430,0.001,97479.0,97477.0,0.5659661]
[1738898961632,0.01,97479.0,97477.0,0.5659661]
[1738898962234,0.01,97479.0,97477.0,0.3608]
[1738898965038,0.01,97479.0,97477.0,0.60496919]
[1738898966242,0.01,97479.0,97477.0,0.24416919]
[1738898966943,0.01,97479.0,97477.0,0.44933399]
[1738898968043,0.009,97479.0,97477.0,0.44933399]
[1738898968347,0.001,97479.0,97477.0,0.44933399]
[1738898968534,0.01,97479.0,97477.0,0.44933399]
[1738898968735,0.01,97479.0,97477.0,0.2051648]
[1738898969941,0.01,97479.0,97478.0,0.3608]
[1738898971536,0.001,97479.0,97478.0,0.3608]
[1738898971738,0.01,97479.0,97478.0,0.3608]
[1738898972640,0.01,97479.0,97477.0,0.2051648]
[1738898974043,0.001,97479.0,97477.0,0.2051648]
[1738898974244,0.009,97479.0,97475.0,0.3608]
[1738898974443,0.01,97479.0,97475.0,0.3608]
[1738898974849,0.001,97479.0,97475.0,0.3608]
[1738898975050,0.01,97479.0,97475.0,0.3608]
[1738898975447,0.2051672,97477.0,97475.0,0.60702232]
[1738898976458,0.001,97479.0,97475.0,0.60702232]
[1738898976753,0.01,97479.0,97475.0,0.60702232]
[1738898977239,0.001,97479.0,97475.0,0.60702232]
[1738898977444,0.009,97477.0,97475.0,0.60702232]
[1738898977643,0.01,97477.0,97475.0,0.60702232]
[1738898977844,0.01,97477.0,97475.0,0.24622232]
[1738898978143,0.01,97477.0,97472.0,0.01024388]
[1738898978144,0.009,97479.0,97473.0,0.24622232]
[1738898978347,0.01,97479.0,97477.0,0.18466492]
[1738898978846,0.009,97479.0,97477.0,0.18466492]
[1738898979755,0.0324,97482.0,97477.0,0.18466492]
[1738898980461,0.001,97479.0,97477.0,0.18466492]
[1738898980852,0.0324,97482.0,97477.0,0.18466492]
[1738898981159,0.009,97479.0,97477.0,0.18466492]
[1738898981658,0.01,97479.0,97475.0,0.18466492]
[1738898982157,0.009,97479.0,97475.0,0.18466492]
[1738898982656,0.0334,97482.0,97475.0,0.18466492]
[1738898982857,0.0424,97482.0,97475.0,0.18466492]
[1738898983658,0.009,97479.0,97475.0,0.18466492]
[1738898983854,0.01,97479.0,97475.0,0.18466492]
[1738898984445,0.009,97479.0,97475.0,0.18466492]
[1738898984852,0.0424,97482.0,97475.0,0.18466492]
[1738898985054,0.0414,97482.0,97475.0,0.18466492]
[1738898985256,0.001,97479.0,97475.0,0.18466492]
[1738898985454,0.001,97479.0,97475.0,0.24622232]
[1738898986462,0.01,97479.0,97475.0,0.24622232]
[1738898986963,0.009,97479.0,97475.0,0.24622232]
[1738898987454,0.01,97479.0,97475.0,0.24622232]
[1738898990364,0.2151627,97479.0,97475.0,0.24622232]
[1738898992658,0.01,97479.0,97476.0,0.18464275]
[1738898994664,0.01,97479.0,97477.0,0.18464275]
[1738898996166,0.01,97479.0,97478.0,0.2051641]
[1738898997256,0.001,97479.0,97478.0,0.2051641]
[1738898997460,0.01,97479.0,97478.0,0.2051641]
[1738898997759,0.009,97479.0,97478.0,0.2051641]
[1738899000068,0.009,97479.0,97474.0,0.24622232]
[1738899000567,0.2051651,97478.0,97474.0,0.24622232]
[1738899000768,0.009,97479.0,97474.0,0.24622232]
[1738899000971,0.009,97479.0,97476.0,0.2051664]
[1738899001168,0.009,97479.0,97474.0,0.24622232]
[1738899001375,0.01,97479.0,97475.0,0.0305]
[1738899002867,0.01,97479.0,97476.0,0.0317]
[1738899004074,0.009,97479.0,97476.0,0.0317]
[1738899004275,0.01,97479.0,97476.0,0.0317]
[1738899005272,0.01,97479.0,97478.0,0.18457506]
[1738899005474,0.001,97479.0,97478.0,0.18457506]
[1738899005674,0.01,97479.0,97478.0,0.18457506]
[1738899006359,0.001,97479.0,97478.0,0.18457506]
[1738899006563,0.01,97479.0,97478.0,0.18457506]
[1738899008971,0.001,97479.0,97478.0,0.18457506]
[1738899009165,0.01,97479.0,97478.0,0.18457506]
[1738899009364,0.009,97479.0,97478.0,0.18457506]
[1738899009575,0.01,97479.0,97478.0,0.18457506]
[1738899010075,0.009,97479.0,97478.0,0.18457506]
[1738899011774,0.009,97479.0,97477.0,0.3608]
[1738899012772,0.15350945,97486.0,97477.0,0.3608]
[1738899012971,0.009,97479.0,97477.0,0.3608]
[1738899014871,0.2051447,97488.0,97477.0,0.3608]
[1738899015181,0.009,97486.0,97477.0,0.3608]
[1738899015879,0.009,97479.0,97477.0,0.3608]
[1738899016482,0.2051447,97488.0,97477.0,0.3608]
[1738899016779,0.009,97486.0,97477.0,0.3608]
[1738899017376,0.2051527,97484.0,97477.0,0.3608]
[1738899017583,0.0608,97483.0,97477.0,0.3608]
[1738899018882,0.009,97479.0,97477.0,0.3608]
[1738899019283,0.2141622,97479.0,97477.0,0.3608]
[1738899019579,0.0608,97483.0,97476.0,0.24610008]
[1738899019786,0.2051662,97477.0,97476.0,0.24610008]
[1738899019976,0.5659662,97477.0,97476.0,0.24610008]
[1738899020179,0.2051809,97470.0,97469.0,0.30627276]
[1738899020688,0.3608,97477.0,97451.0,0.362]
[1738899020689,0.2051957,97463.0,97451.0,0.3608]
[1738899020878,0.2052103,97457.0,97451.0,0.3608]
[1738899021074,0.2363116,97456.0,97451.0,0.3608]
[1738899022970,0.2453116,97456.0,97451.0,0.3608]
[1738899023688,0.2463116,97456.0,97451.0,0.3608]
[1738899024073,0.2052172,97453.0,97451.0,0.3608]
[1738899025787,0.2142172,97453.0,97451.0,0.3608]
[1738899026280,0.2152172,97453.0,97451.0,0.3608]
[1738899026882,0.01,97453.0,97451.0,0.3608]
[1738899027478,0.01,97453.0,97451.0,0.5660198]
[1738899027682,0.01,97453.0,97452.0,0.0659]
[1738899028787,0.009,97453.0,97452.0,0.0659]
[1738899028987,0.01,97453.0,97452.0,0.0659]
[1738899029579,0.2052188,97452.0,97451.0,0.40784]
[1738899029784,0.2052188,97452.0,97451.0,0.3608]
[1738899030187,0.2052301,97447.0,97443.0,0.04704]
[1738899031987,0.2122301,97447.0,97443.0,0.04704]
[1738899032288,0.2132301,97447.0,97443.0,0.04704]
[1738899032887,0.2132301,97447.0,97441.0,0.3608]
[1738899032888,0.2052378,97443.0,97441.0,0.3608]
[1738899033491,0.2052378,97443.0,97438.0,0.01017609]
[1738899033795,0.2052378,97443.0,97432.0,0.3608]
[1738899034286,0.2052422,97441.0,97432.0,0.3608]
[1738899034486,0.3608,97440.0,97421.0,0.362]
[1738899034691,0.07954321,97431.0,97421.0,0.3608]